bitfinex-derivatives/quotes_ETHF0:USTF0_20230903
["timestamp","ask_amount","ask_price","bid_price","bid_amount"]
[1693745067917,11.79875,1639.9,1639.8,15.30177218]
[1693745069615,8.7492,1639.9,1639.8,15.30177218]
[1693745070019,11.79875,1639.9,1639.8,15.30177218]
[1693745070816,14.8483,1639.9,1639.8,10.32176866]
[1693745071018,11.79875,1639.9,1639.8,13.37149866]
[1693745071818,11.79875,1639.9,1639.8,16.23866218]
[1693745072617,8.7492,1639.9,1639.8,19.28840218]
[1693745073320,11.79875,1639.9,1639.8,19.28840218]
[1693745074324,11.79875,1639.9,1639.8,16.23866218]
[1693745074711,14.8483,1639.9,1639.8,4.16130866]
[1693745074911,14.8483,1639.9,1639.8,1.58941646]
[1693745074912,17.2400065,1639.9,1639.8,1.58941646]
[1693745075115,25.87138026,1639.9,1639.8,1.58941646]
[1693745076015,25.87138026,1639.9,1639.8,1.58939892]
[1693745076016,27.47653993,1639.9,1639.8,1.58939892]
[1693745076524,18.84516617,1639.9,1639.8,1.58939892]
[1693745077120,27.49054578,1639.9,1639.8,1.58939892]
[1693745077820,18.84516617,1639.9,1639.8,1.58939892]
[1693745078122,18.84516617,1639.9,1639.8,4.63913892]
[1693745078318,18.84516617,1639.9,1639.7,8.48383838]
[1693745078319,17.2464197,1639.9,1639.7,2.38409838]
[1693745078528,17.2464197,1639.9,1639.5,2.38475975]
[1693745078529,0.0609,1639.7,1639.5,2.38475975]
[1693745078722,12.20044,1639.6,1639.5,3.35228282]
[1693745079119,14.47037648,1639.6,1639.5,3.35228282]
[1693745079317,14.47037648,1639.6,1639.5,3.08560423]
[1693745079620,16.06883985,1639.6,1639.5,3.08560423]
[1693745079918,17.9724568,1639.6,1639.3,2.38431859]
[1693745080115,1.6592266,1639.4,1639.2,2.38431859]
[1693745080319,14.53347648,1639.3,1639.2,3.08588363]
[1693745081519,19.48547648,1639.3,1639.2,3.08588363]
[1693745083127,19.48547648,1639.3,1639.2,12.05474715]
[1693745084428,14.10399,1639.3,1639.2,15.96137001]
[1693745084725,14.10399,1639.3,1639.2,12.78227856]
[1693745084921,14.10399,1639.3,1639.2,15.16402872]
[1693745085125,14.10399,1639.3,1639.2,9.2460152]
[1693745085324,17.15466,1639.3,1639.2,9.2460152]
[1693745085626,17.15466,1639.3,1639.2,3.1443152]
[1693745086818,17.15466,1639.3,1639.2,6.1951652]
[1693745087019,17.15466,1639.3,1639.2,3.1443152]
[1693745087220,17.15466,1639.3,1639.2,6.1951652]
[1693745087416,17.15466,1639.3,1639.2,3.1443152]
[1693745087616,17.15466,1639.3,1639.2,3.11185]
[1693745087822,17.15466,1639.3,1639.2,3.75175315]
[1693745088729,17.15466,1639.3,1639.2,9.02986352]
[1693745089127,17.15466,1639.3,1639.2,3.11185]
[1693745089930,17.15466,1639.3,1639.2,5.97901352]
[1693745090131,17.15466,1639.3,1639.2,3.11185]
[1693745090632,17.15466,1639.3,1639.2,6.1627]
[1693745090932,17.15466,1639.3,1639.2,9.02986352]
[1693745091323,17.15466,1639.3,1639.2,6.1627]
[1693745092226,17.15466,1639.3,1639.2,3.11185]
[1693745092430,17.15466,1639.3,1639.2,6.1627]
[1693745093234,17.15466,1639.3,1639.2,6.1017]
[1693745093830,17.15466,1639.3,1639.2,3.05085]
[1693745094129,17.15466,1639.3,1639.2,6.1627]
[1693745095339,17.15466,1639.3,1639.2,0.061]
[1693745095528,17.15466,1639.3,1639.2,3.11185]
[1693745095731,17.15466,1639.3,1639.2,6.1627]
[1693745096134,17.15466,1639.3,1639.2,0.061]
[1693745096333,0.0609,1639.2,1639.0,8.48407016]
[1693745096534,12.26487,1639.2,1639.1,3.11195]
[1693745096733,12.26487,1639.2,1639.1,6.16299]
[1693745097035,14.53480648,1639.2,1639.1,6.16299]
[1693745097437,14.53480648,1639.2,1639.1,9.21403]
[1693745097932,11.48376648,1639.2,1639.1,9.21403]
[1693745098132,14.53480648,1639.2,1639.1,3.05095]
[1693745098338,11.48376648,1639.2,1639.1,6.10199]
[1693745098736,11.48376648,1639.2,1639.1,9.15303]
[1693745099246,11.48376648,1639.2,1639.1,12.08119352]
[1693745100845,9.21383,1639.2,1639.1,12.08119352]
[1693745101140,2.5405,1639.3,1639.2,12.2644]
[1693745101348,2.5405,1639.3,1639.2,13.80849447]
[1693745101738,5.59117,1639.3,1639.2,13.80849447]
[1693745102140,8.64184,1639.3,1639.2,13.80849447]
[1693745102334,2.5405,1639.3,1639.2,14.44762185]
[1693745102540,5.59117,1639.3,1639.2,14.44762185]
[1693745102742,2.5405,1639.3,1639.2,14.44762185]
[1693745103242,9.21103,1639.7,1639.6,0.061]
[1693745103439,9.21103,1639.7,1639.6,12.07849352]
[1693745103644,6.10008,1639.7,1639.6,15.12860352]
[1693745104345,11.57577,1639.8,1639.7,9.21076]
[1693745104544,11.57577,1639.8,1639.7,10.75485447]
[1693745106446,13.99487,1639.8,1639.7,7.70493447]
[1693745106648,17.04479,1639.8,1639.7,7.70493447]
[1693745109344,17.04479,1639.8,1639.7,6.16084]
[1693745118850,17.04479,1639.8,1639.7,3.11092]
[1693745122053,17.04479,1639.8,1639.7,0.061]
[1693745123453,17.04479,1639.8,1639.7,2.92816352]
[1693745123653,17.04479,1639.8,1639.7,0.061]
[1693745124254,17.04479,1639.8,1639.7,3.11092]
[1693745127255,18.63937351,1639.8,1639.7,3.11092]
[1693745129255,18.70027351,1639.8,1639.7,3.11092]
[1693745133459,18.70027351,1639.8,1639.7,5.97808352]
[1693745134958,18.70027351,1639.8,1639.7,3.11092]
[1693745135159,17.10569,1639.8,1639.7,3.11092]
[1693745135968,17.10569,1639.8,1639.7,5.97808352]
[1693745136363,17.10569,1639.8,1639.7,3.11092]
[1693745136770,17.10569,1639.8,1639.7,5.97808352]
[1693745136958,17.04479,1639.8,1639.7,5.97808352]
[1693745137165,2.4191,1639.8,1639.7,18.11024187]
[1693745137463,2.4191,1639.8,1639.7,15.73212073]
[1693745137665,2.4191,1639.8,1639.7,18.90294892]
[1693745140678,2.4191,1639.8,1639.7,18.53370337]
[1693745144575,2.4191,1639.8,1639.7,19.32641042]
[1693745148885,8.72448717,1640.0,1639.7,19.32641042]
[1693745149085,11.25498717,1640.0,1639.9,11.53179206]
[1693745149278,11.25498717,1640.0,1639.9,17.34170795]
[1693745149483,11.25498717,1640.0,1639.9,16.54723383]
[1693745150188,8.20550717,1640.0,1639.9,19.59678383]
[1693745150389,5.15604717,1640.0,1639.9,19.59678383]
[1693745150700,8.20540717,1640.0,1639.9,19.59678383]
[1693745151287,11.25476717,1640.0,1639.9,19.59678383]
[1693745152887,11.31576717,1640.0,1639.9,11.1146352]
[1693745153083,19.00907068,1640.0,1639.9,3.04955]
[1693745153283,21.40094595,1640.0,1639.9,3.04955]
[1693745153480,21.40094595,1640.0,1639.9,6.0991]
[1693745153886,21.40094595,1640.0,1639.9,8.96626352]
[1693745154080,21.40094595,1640.0,1639.9,6.0991]
[1693745154286,18.35158595,1640.0,1639.9,9.14865]
[1693745154587,15.95971068,1640.0,1639.9,12.01581352]
[1693745154892,18.35158595,1640.0,1639.9,12.01581352]
[1693745155290,18.35158595,1640.0,1639.9,9.14865]
[1693745155786,18.35158595,1640.0,1639.9,6.0991]
[1693745155988,0.061,1639.9,1639.7,5.43293863]
[1693745156188,8.36939648,1639.8,1639.7,11.53274863]
[1693745156387,8.36939648,1639.8,1639.7,18.05424911]
[1693745156594,6.09946,1639.8,1639.7,18.05424911]
[1693745157490,6.09946,1639.8,1639.7,18.84872323]
[1693745157990,0.061,1639.9,1639.7,19.63473572]
[1693745158192,0.061,1639.9,1639.8,5.32474766]
[1693745158494,11.31596717,1640.0,1639.8,17.52366766]
[1693745158688,11.31596717,1640.0,1639.9,18.05174188]
[1693745159590,14.36540717,1640.0,1639.9,18.05174188]
[1693745160498,14.36540717,1640.0,1639.9,15.00219188]
[1693745161096,14.30440717,1640.0,1639.9,15.00219188]
[1693745161297,11.25491717,1640.0,1639.9,18.05174188]
[1693745161493,11.25491717,1640.0,1639.9,15.00219188]
[1693745161691,14.30433717,1640.0,1639.9,15.00219188]
[1693745163294,11.25489717,1640.0,1639.9,15.00219188]
[1693745163893,14.30431717,1640.0,1639.9,15.00219188]
[1693745164294,14.30431717,1640.0,1639.9,11.95264188]
[1693745164488,14.36530717,1640.0,1639.9,11.95264188]
[1693745164994,17.41472717,1640.0,1639.9,2.98637836]
[1693745165198,14.36530717,1640.0,1639.9,9.08547836]
[1693745165400,17.41472717,1640.0,1639.9,2.98637836]
[1693745165596,14.36530717,1640.0,1639.9,6.03536518]
[1693745165798,14.36530717,1640.0,1639.9,11.9520787]
[1693745166194,14.36530717,1640.0,1639.9,15.0016287]
[1693745168192,11.25488717,1640.0,1639.9,18.0511787]
[1693745168401,8.20540717,1640.0,1639.9,18.0511787]
[1693745169100,5.15604717,1640.0,1639.9,18.0511787]
[1693745169297,5.15604717,1640.0,1639.9,15.66947273]
[1693745170103,8.20540717,1640.0,1639.9,15.66947273]
[1693745170499,5.15604717,1640.0,1639.9,15.66947273]
[1693745170899,8.20540717,1640.0,1639.9,15.66947273]
[1693745171299,11.25476717,1640.0,1639.9,15.00139399]
[1693745172408,14.36512717,1640.0,1639.9,8.90229399]
[1693745172597,14.36512717,1640.0,1639.9,9.08468047]
[1693745172799,15.96248577,1640.0,1639.9,8.96626352]
[1693745172998,15.96248577,1640.0,1639.9,12.01581352]
[1693745173198,14.36512717,1640.0,1639.9,12.01581352]
[1693745173603,14.36512717,1640.0,1639.9,12.62002648]
[1693745174005,5.15604717,1640.0,1639.9,18.05104774]
[1693745174201,8.20540717,1640.0,1639.9,18.05104774]
[1693745175019,5.15604717,1640.0,1639.9,18.05104774]
[1693745175906,8.20540717,1640.0,1639.9,18.05104774]
[1693745176301,5.15604717,1640.0,1639.9,15.66957648]
[1693745176506,5.15604717,1640.0,1639.9,18.84518444]
[1693745179612,5.15604717,1640.0,1639.9,15.66957648]
[1693745179912,5.15604717,1640.0,1639.9,19.63908643]
[1693745181511,8.26640717,1640.0,1639.9,19.63908643]
[1693745181710,5.21704717,1640.0,1639.9,19.63908643]
[1693745183817,5.15604717,1640.0,1639.9,19.63908643]
[1693745184112,5.15604717,1640.0,1639.9,15.66957648]
[1693745184312,5.15604717,1640.0,1639.9,19.64142623]
[1693745185617,5.15604717,1640.0,1639.9,15.66957648]
[1693745187817,5.15604717,1640.0,1639.9,19.64096921]
[1693745190918,5.21704717,1640.0,1639.9,18.8467566]
[1693745191311,14.36512717,1640.0,1639.9,12.93004308]
[1693745191526,14.36512717,1640.0,1639.9,9.08676808]
[1693745192019,14.36512717,1640.0,1639.9,15.0034816]
[1693745192621,14.36512717,1640.0,1639.9,12.13631808]
[1693745192823,14.36512717,1640.0,1639.9,15.0034816]
[1693745193023,11.31576717,1640.0,1639.9,15.0034816]
[1693745193420,11.31576717,1640.0,1639.9,12.13631808]
[1693745193820,11.31576717,1640.0,1639.9,15.0034816]
[1693745194021,5.21704717,1640.0,1639.9,18.0530316]
[1693745194417,5.15604717,1640.0,1639.9,18.8467566]
[1693745194619,5.15604717,1640.0,1639.9,15.66957648]
[1693745194820,5.15604717,1640.0,1639.9,19.64096921]
[1693745195219,5.15604717,1640.0,1639.9,15.66957648]
[1693745195621,5.15604717,1640.0,1639.9,19.64080968]
[1693745195822,5.15604717,1640.0,1639.9,15.66957648]
[1693745196220,5.15604717,1640.0,1639.9,19.64079693]
[1693745196420,5.15604717,1640.0,1639.9,15.66957648]
[1693745196627,5.15604717,1640.0,1639.9,19.64077418]
[1693745198831,5.21704717,1640.0,1639.9,19.64077418]
[1693745199128,5.21704717,1640.0,1639.9,16.59122418]
[1693745199422,5.21704717,1640.0,1639.9,19.64077418]
[1693745199817,5.21704717,1640.0,1639.9,12.80241296]
[1693745200018,5.21704717,1640.0,1639.9,15.66957648]
[1693745200220,5.21704717,1640.0,1639.9,19.64077418]
[1693745201930,5.21704717,1640.0,1639.9,18.84723222]
[1693745202831,5.21704717,1640.0,1639.9,19.64077418]
[1693745203622,5.21704717,1640.0,1639.9,18.84797352]
[1693745204127,5.21704717,1640.0,1639.9,18.8479602]
[1693745204327,5.21704717,1640.0,1639.9,15.66957648]
[1693745205134,5.21704717,1640.0,1639.9,18.8481073]
[1693745208038,5.21704717,1640.0,1639.9,15.66957648]
[1693745209131,5.21704717,1640.0,1639.9,18.84849341]
[1693745209335,5.21704717,1640.0,1639.9,19.64077418]
[1693745209638,5.21704717,1640.0,1639.9,15.98145559]
[1693745209837,5.21704717,1640.0,1639.9,18.84861911]
[1693745210135,5.21704717,1640.0,1639.9,19.64077418]
[1693745212631,5.15604717,1640.0,1639.9,15.66957648]
[1693745214235,5.15604717,1640.0,1639.9,20.43298842]
[1693745215333,5.15604717,1640.0,1639.9,27.24839893]
[1693745216633,5.15604717,1640.0,1639.9,22.48498699]
[1693745221639,1.5973586,1640.3,1639.9,22.48498699]
[1693745221844,1.6583586,1640.4,1640.2,3.17809462]
[1693745222046,1.6583586,1640.4,1640.3,17.44576238]
[1693745222239,0.061,1640.4,1640.3,20.38876557]
[1693745222641,0.061,1640.4,1640.3,17.21067095]
[1693745223043,0.061,1640.4,1640.3,20.38728303]
[1693745224240,0.061,1640.4,1640.3,21.18328922]
[1693745224546,0.061,1640.4,1640.3,20.38492294]
[1693745224947,5.2739,1640.4,1640.3,20.38492294]
[1693745225145,5.2129,1640.4,1640.3,21.18328922]
[1693745225546,5.2129,1640.4,1640.3,37.80844977]
[1693745225754,5.2129,1640.4,1640.3,33.8358315]
[1693745226449,5.2129,1640.4,1640.3,37.80044512]
[1693745227049,5.2129,1640.4,1640.3,33.8358315]
[1693745227549,5.2129,1640.4,1640.3,37.79913172]
[1693745228547,5.2129,1640.4,1640.3,33.8358315]
[1693745228747,2.5788,1640.4,1640.3,33.8358315]
[1693745229555,2.5788,1640.4,1640.3,37.79639614]
[1693745229759,2.5788,1640.4,1640.3,33.8358315]
[1693745230462,2.5788,1640.4,1640.3,37.79501977]
[1693745232765,2.11325662,1640.4,1640.3,37.79501977]
[1693745232960,6.62e-06,1640.4,1640.3,37.79501977]
[1693745233263,0.01,1640.5,1640.3,37.79501977]
[1693745233466,0.01,1640.5,1640.4,3.76982534]
[1693745233763,0.01,1640.5,1640.4,23.03559932]
[1693745234862,0.01,1640.5,1640.4,22.24338931]
[1693745235057,0.071,1640.5,1640.4,22.24338931]
[1693745235959,0.071,1640.5,1640.4,16.7542498]
[1693745236264,2.6839,1640.5,1640.4,14.38084743]
[1693745236461,2.6839,1640.5,1640.4,13.77663447]
[1693745238766,2.6839,1640.5,1640.4,14.37842989]
[1693745238956,2.6839,1640.5,1640.4,13.77663447]
[1693745240164,2.6839,1640.5,1640.4,12.19448]
[1693745240861,0.061,1640.4,1640.2,3.55288225]
[1693745241172,8.36753648,1640.3,1640.2,9.65077225]
[1693745241568,11.41633648,1640.3,1640.2,6.10693439]
[1693745246874,11.41633648,1640.3,1640.2,2.47383439]
[1693745247172,11.41633648,1640.3,1640.2,5.52282439]
[1693745247381,8.36753648,1640.3,1640.2,11.43897791]
[1693745247575,8.36753648,1640.3,1640.2,13.02113238]
[1693745249274,11.41633648,1640.3,1640.2,13.02113238]
[1693745249477,11.41633648,1640.3,1640.2,5.52282439]
[1693745251471,11.41633648,1640.3,1640.2,2.47383439]
[1693745251675,14.46513648,1640.3,1640.0,7.68071447]
[1693745251877,14.46513648,1640.3,1640.0,4.63141447]
[1693745252171,16.89933648,1640.3,1640.0,1.58215447]
[1693745252371,16.89933648,1640.3,1640.0,7.68085447]
[1693745252868,16.89933648,1640.3,1640.0,1.58215447]
[1693745253276,16.89933648,1640.3,1640.0,4.63151447]
[1693745253571,16.89933648,1640.3,1640.0,1.58215447]
[1693745253875,16.89933648,1640.3,1639.9,3.95555684]
[1693745254071,16.89933648,1640.3,1639.9,4.55866469]
[1693745254271,16.89933648,1640.3,1639.9,1.58215447]
[1693745254574,16.89933648,1640.3,1639.9,7.60816554]
[1693745254774,16.89933648,1640.3,1639.9,10.05461684]
[1693745255369,18.49669508,1640.3,1639.9,7.68121447]
[1693745255568,16.89933648,1640.3,1639.9,7.68121447]
[1693745255973,16.89933648,1640.3,1639.9,4.63166447]
[1693745256372,18.49669508,1640.3,1639.9,4.63166447]
[1693745256572,16.89933648,1640.3,1639.9,4.63166447]
[1693745256772,18.49669508,1640.3,1639.9,4.63166447]
[1693745257972,18.49669508,1640.3,1639.9,1.58215447]
[1693745258175,18.49669508,1640.3,1639.9,2.18530281]
[1693745259075,20.89273298,1640.3,1639.8,10.05481684]
[1693745259275,0.061,1640.1,1639.8,7.68141447]
[1693745259576,0.061,1639.9,1639.8,7.68141447]
[1693745259772,9.20965,1639.9,1639.8,7.68141447]
[1693745260573,9.20965,1639.9,1639.8,10.73114447]
[1693745260772,6.1601,1639.9,1639.8,13.59830799]
[1693745261077,6.1601,1639.9,1639.8,14.2014319]
[1693745261679,6.1601,1639.9,1639.8,16.5893319]
[1693745262377,9.20965,1639.9,1639.8,14.40405352]
[1693745263479,6.1601,1639.9,1639.8,14.40405352]
[1693745264075,9.20965,1639.9,1639.8,14.40405352]
[1693745265782,9.20965,1639.9,1639.8,11.53689]
[1693745266682,9.20965,1639.9,1639.8,14.40405352]
[1693745267280,9.14865,1639.9,1639.8,14.40405352]
[1693745267672,9.14865,1639.9,1639.6,4.78420237]
[1693745267673,12.2592,1639.9,1639.6,1.58215447]
[1693745267874,0.061,1639.7,1639.5,13.15071447]
[1693745268184,9.1503,1639.6,1639.5,13.15071447]
[1693745268778,9.1503,1639.6,1639.5,16.01787799]
[1693745269673,11.42023648,1639.6,1639.5,13.15071447]
[1693745270078,11.42023648,1639.6,1639.5,16.01787799]
[1693745270379,11.42023648,1639.6,1639.5,14.43572352]
[1693745270879,11.42023648,1639.6,1639.5,8.51834]
[1693745271079,11.42023648,1639.6,1639.5,11.38550352]
[1693745271586,9.1503,1639.6,1639.5,11.38550352]
[1693745274179,9.1503,1639.6,1639.5,8.51834]
[1693745274384,9.1503,1639.6,1639.5,11.38550352]
[1693745276885,9.1803,1639.6,1639.5,11.38550352]
[1693745278888,9.1803,1639.6,1639.5,8.51834]
[1693745279490,9.1803,1639.6,1639.5,11.38550352]
[1693745280490,9.1803,1639.6,1639.5,8.51834]
[1693745281296,9.1803,1639.6,1639.5,11.38550352]
[1693745281495,9.1803,1639.6,1639.5,8.51834]
[1693745282291,9.1803,1639.6,1639.5,11.38550352]
[1693745282594,9.1803,1639.6,1639.5,8.51834]
[1693745283096,9.1803,1639.6,1639.5,11.38550352]
[1693745284793,9.1803,1639.6,1639.5,12.96765799]
[1693745285399,9.1803,1639.6,1639.5,13.57082173]
[1693745285802,9.1803,1639.6,1639.5,16.62111173]
[1693745286499,9.1803,1639.6,1639.5,18.9945141]
[1693745288399,9.1803,1639.6,1639.5,17.41235963]
[1693745289497,0.03,1639.6,1639.5,17.41235963]
[1693745289692,0.03,1639.6,1639.5,20.46264963]
[1693745290000,3.04958,1639.9,1639.6,1.54409447]
[1693745290300,6.09913,1639.9,1639.8,1.58523525]
[1693745290495,6.09913,1639.9,1639.8,12.88169906]
[1693745290696,9.14868,1639.9,1639.8,12.88170039]
[1693745291397,6.0991,1639.9,1639.8,15.25955326]
[1693745291597,9.14868,1639.9,1639.8,15.25955326]
[1693745292502,9.14868,1639.9,1639.8,12.88187498]
[1693745292696,9.14868,1639.9,1639.8,10.69328447]
[1693745293097,9.14868,1639.9,1639.8,7.64355447]
[1693745293296,9.14868,1639.9,1639.8,10.08875447]
[1693745293491,9.14868,1639.9,1639.8,11.67398972]
[1693745295405,9.14868,1639.9,1639.8,12.27777549]
[1693745295708,9.14868,1639.9,1639.8,11.67398972]
[1693745296306,9.14868,1639.9,1639.8,15.32759357]
[1693745296604,9.14868,1639.9,1639.8,17.70544644]
[1693745297409,9.14868,1639.9,1639.8,16.12021119]
[1693745299707,9.14868,1639.9,1639.8,16.9079707]
[1693745303209,12.1983,1639.9,1639.8,3.65361385]
[1693745303408,9.14868,1639.9,1639.8,9.86903623]
[1693745305214,9.14868,1639.9,1639.8,12.91884623]
[1693745308520,6.0991,1639.9,1639.8,13.71242212]
[1693745309019,9.14872,1639.9,1639.8,13.71242212]
[1693745309212,6.0991,1639.9,1639.8,13.71242212]
[1693745311217,9.14872,1639.9,1639.8,13.71242212]
[1693745313319,9.14872,1639.9,1639.8,9.75323385]
[1693745314311,9.14872,1639.9,1639.8,12.92937152]
[1693745317918,9.14872,1639.9,1639.8,15.41887152]
[1693745322930,9.14872,1639.9,1639.8,16.20192212]
[1693745329433,9.14872,1639.9,1639.8,12.24273385]
[1693745329932,9.14872,1639.9,1639.8,16.21551146]
[1693745331833,9.14872,1639.9,1639.8,11.63893]
[1693745332033,9.14872,1639.9,1639.8,16.21731663]
[1693745334836,9.14872,1639.9,1639.8,12.24365143]
[1693745336131,9.14872,1639.9,1639.8,16.22047436]
[1693745336339,12.19836,1639.9,1639.8,7.07104436]
[1693745336637,12.19836,1639.9,1639.8,10.68120436]
[1693745337635,12.19836,1639.9,1639.8,13.73103436]
[1693745338034,12.19836,1639.9,1639.8,9.75421143]
[1693745338428,12.19836,1639.9,1639.8,12.62137495]
[1693745339033,9.14872,1639.9,1639.8,12.62137495]
[1693745348444,6.0991,1639.9,1639.8,12.62137495]
[1693745349440,6.0991,1639.9,1639.8,15.67120495]
[1693745349641,6.09872,1640.1,1639.8,26.80772234]
[1693745349841,12.9827414,1640.2,1639.8,26.80772234]
[1693745349842,9.64542352,1640.2,1640.0,12.1978]
[1693745350038,9.14769,1640.2,1640.1,16.59503743]
[1693745350243,9.14769,1640.2,1640.1,18.1391319]
[1693745350439,9.14769,1640.2,1640.1,20.7578319]
[1693745352242,6.09844,1640.2,1640.1,23.8071019]
[1693745352942,6.09844,1640.2,1640.1,23.00955748]
[1693745354143,9.14769,1640.2,1640.1,17.09312396]
[1693745354448,6.09844,1640.2,1640.1,19.96028748]
[1693745354649,9.14764,1640.2,1640.1,19.96028748]
[1693745354843,6.0984,1640.2,1640.1,19.96028748]
[1693745355049,9.1476,1640.2,1640.1,19.96028748]
[1693745356651,6.09799,1640.3,1640.1,23.00955748]
[1693745356953,6.09799,1640.3,1640.2,12.13388174]
[1693745357145,6.09799,1640.3,1640.2,12.80104143]
[1693745357351,6.09799,1640.3,1640.2,15.18251935]
[1693745358347,7.70600707,1640.4,1640.2,12.80104143]
[1693745358547,9.15559495,1640.4,1640.3,16.58689975]
[1693745359154,10.75487707,1640.4,1640.3,14.20591087]
[1693745359359,10.75487707,1640.4,1640.3,15.74889565]
[1693745359960,9.15559495,1640.4,1640.3,16.54255861]
[1693745360354,9.21659495,1640.4,1640.3,10.44475861]
[1693745360560,12.26546495,1640.4,1640.3,5.85176414]
[1693745360859,12.26546495,1640.4,1640.3,2.98460062]
[1693745361047,12.26546495,1640.4,1640.3,9.08240062]
[1693745361254,12.26546495,1640.4,1640.3,9.08208786]
[1693745361664,12.26546495,1640.4,1640.3,11.94925138]
[1693745361854,12.26546495,1640.4,1640.3,9.08208786]
[1693745362161,12.26546495,1640.4,1640.3,6.03318786]
[1693745362462,9.21654495,1640.4,1640.3,6.03318786]
[1693745362856,9.21654495,1640.4,1640.3,10.6691417]
[1693745363650,9.21654495,1640.4,1640.3,13.53630522]
[1693745364160,9.21654495,1640.4,1640.3,10.6691417]
[1693745364360,9.21654495,1640.4,1640.3,13.7180417]
[1693745364556,9.21654495,1640.4,1640.3,16.58520522]
[1693745364763,12.26536495,1640.4,1640.3,4.5713417]
[1693745365055,13.86278718,1640.4,1640.3,1.58705384]
[1693745365260,10.81396718,1640.4,1640.3,4.63595384]
[1693745365462,10.81396718,1640.4,1640.3,11.15561568]
[1693745365463,9.21654495,1640.4,1640.3,11.15561568]
[1693745365859,9.21654495,1640.4,1640.3,8.28845216]
[1693745366460,9.21654495,1640.4,1640.3,11.33735216]
[1693745367057,10.81396718,1640.4,1640.3,9.1467]
[1693745367457,7.76514718,1640.4,1640.3,12.01386352]
[1693745368061,10.81385718,1640.4,1640.3,9.1467]
[1693745369263,10.81385718,1640.4,1640.3,6.0978]
[1693745369772,10.81385718,1640.4,1640.3,12.01386352]
[1693745371060,0.07014495,1640.4,1640.3,17.25321519]
[1693745371264,6.16756495,1640.4,1640.3,17.25321519]
[1693745371462,6.16756495,1640.4,1640.3,19.65381519]
[1693745371663,3.05785495,1640.4,1640.3,19.65381519]
[1693745371865,9.15527495,1640.4,1640.3,12.95261736]
[1693745372058,9.21627495,1640.4,1640.3,9.90371736]
[1693745372266,9.21627495,1640.4,1640.3,13.60091736]
[1693745372667,9.21627495,1640.4,1640.3,10.55201736]
[1693745372868,9.21627495,1640.4,1640.3,7.68485384]
[1693745373268,9.21627495,1640.4,1640.3,13.60091736]
[1693745375075,9.21627495,1640.4,1640.3,16.58503073]
[1693745375276,9.21627495,1640.4,1640.3,14.20435482]
[1693745376074,9.21627495,1640.4,1640.3,16.58503073]
[1693745377069,6.16756495,1640.4,1640.3,14.99797689]
[1693745377276,0.00914495,1640.4,1640.3,18.84043552]
[1693745382182,0.00914495,1640.4,1640.3,18.04469538]
[1693745382771,0.00914495,1640.4,1640.3,20.56259538]
[1693745383379,1.59742223,1640.9,1640.5,10.0]
[1693745383583,1.59742223,1641.0,1640.7,3.96179655]
[1693745383783,7.03766223,1641.1,1640.8,17.2471996]
[1693745383976,10.08515223,1641.1,1640.8,20.56493454]
[1693745384483,10.08515223,1641.1,1640.8,18.18785661]
[1693745384779,4.64485223,1641.1,1640.8,18.18785661]
[1693745384977,1.59742223,1641.1,1640.8,18.18785661]
[1693745385173,10.1745839,1641.2,1641.1,10.0]
[1693745385382,0.7909,1641.3,1641.1,14.41125799]
[1693745385681,0.7909,1641.3,1641.2,12.18888]
[1693745385978,16.90510981,1641.3,1640.9,7.68005862]
[1693745386179,9.1428,1641.0,1640.9,9.14305]
[1693745386379,6.1562,1641.0,1640.9,12.01021352]
[1693745386978,0.061,1641.0,1640.9,15.05799352]
[1693745387385,8.42589648,1641.1,1640.9,15.05799352]
[1693745387986,5.49400333,1641.3,1641.0,1.54409447]
[1693745388177,6.09459,1641.2,1641.1,12.00936352]
[1693745388377,0.8519,1641.3,1641.1,15.05677352]
[1693745388576,6.94599,1641.3,1641.1,16.60086799]
[1693745388788,9.99304,1641.3,1641.1,10.68629447]
[1693745389090,9.99304,1641.3,1641.1,6.0948]
[1693745389279,16.90507981,1641.3,1641.1,3.04732]
[1693745389587,16.90507981,1641.3,1641.1,6.09472]
[1693745389982,13.85802981,1641.3,1641.1,6.0553926]
[1693745390183,12.26297648,1641.3,1641.1,11.96995612]
[1693745391586,15.31002648,1641.3,1641.0,6.09492]
[1693745391790,15.31002648,1641.3,1641.0,3.04742]
[1693745391990,15.31002648,1641.3,1641.0,6.09497]
[1693745393284,15.31002648,1641.3,1641.0,9.14252]
[1693745397193,9.99304,1641.3,1641.1,2.86716352]
[1693745397391,6.94603,1641.3,1641.2,9.14154]
[1693745397596,9.99312,1641.3,1641.2,9.14154]
[1693745397799,9.99312,1641.3,1641.2,6.09436]
[1693745398198,9.99312,1641.3,1641.2,7.63845447]
[1693745398395,6.94603,1641.3,1641.2,7.63845447]
[1693745398593,9.99312,1641.3,1641.2,10.68567447]
[1693745398994,9.99312,1641.3,1641.2,7.63845447]
[1693745399195,9.99312,1641.3,1641.2,6.09436]
[1693745399395,13.04021,1641.3,1641.1,8.96173352]
[1693745401197,2.26993648,1641.2,1641.1,6.09457]
[1693745401402,0.0609,1641.1,1641.0,3.0475]
[1693745401596,9.2031,1641.1,1641.0,6.09506]
[1693745402199,9.2031,1641.1,1641.0,9.14265]
[1693745402597,9.2031,1641.1,1641.0,12.00981352]
[1693745402799,9.2031,1641.1,1641.0,9.14265]
[1693745404695,0.0609,1641.0,1640.9,6.09537]
[1693745404901,11.47360648,1641.0,1640.9,6.09537]
[1693745405100,11.47360648,1641.0,1640.9,3.04765]
[1693745405302,11.47360648,1641.0,1640.9,9.14331]
[1693745406195,14.52119648,1641.0,1640.7,3.04807]
[1693745406503,14.52119648,1641.0,1640.6,6.09648]
[1693745406504,21.133415,1641.0,1640.6,6.09648]
[1693745407203,21.133415,1641.0,1640.6,3.04823]
[1693745407404,1.59111852,1640.9,1640.6,3.04823]
[1693745407606,0.0609,1640.7,1640.6,3.04823]
[1693745407907,9.20538,1640.7,1640.6,3.04823]
[1693745408104,12.25354,1640.7,1640.5,9.14522]
[1693745408303,2.26993648,1640.6,1640.5,6.09676]
[1693745408600,14.46329648,1640.6,1640.3,6.17585274]
[1693745408806,14.46329648,1640.6,1640.3,3.04881]
[1693745409001,14.46329648,1640.6,1640.2,6.09798]
[1693745409299,14.46329648,1640.6,1640.2,6.09807]
[1693745409511,16.054415,1640.6,1640.1,6.09846]
[1693745409703,14.46329648,1640.6,1640.1,6.09846]
[1693745409898,16.054415,1640.6,1640.1,6.09846]
[1693745410605,14.46329648,1640.6,1640.1,3.04919]
[1693745410799,16.054415,1640.6,1640.1,6.09846]
[1693745410999,16.054415,1640.6,1640.0,19.89368]